No. of Trans,Dept Family,Entity Name,Cert Date,Supplier Name,Reference,Gross Amt,Group/Department,Type of Expenditure - Subjective Codes,
1,DCMS,EH,05/10/2011,Wessex Archaeology,0020022112,"50,000.00",Heritage Protection & Planning Group - Heritage Protection Department,OPERATIONAL COSTS - Maritime Consultants,
2,DCMS,EH,17/10/2011,Firmingers,0020023764,"66,070.80",National Collections Group - Property Investment Programme,NET WIP MOVEMENT - WIP Professional Works Advice,
3,DCMS,EH,18/10/2011,Sykes and Son Limited,0020025296,"25,013.88",National Collections Group - Property Maintenance Programme,OPERATIONAL COSTS - Planned Maintenance,
4,DCMS,EH,25/10/2011,Sykes and Son Limited,0020026196,"1,489.20",National Collections Group - Property Maintenance Programme,OPERATIONAL COSTS - Annual Cyclical Works-Building,
5,DCMS,EH,25/10/2011,Sykes and Son Limited,0020026196,"4,148.40",National Collections Group - Property Maintenance Programme,OPERATIONAL COSTS - Annual Cyclical Works-Building,
6,DCMS,EH,25/10/2011,Sykes and Son Limited,0020026196,"4,564.80",National Collections Group - Property Maintenance Programme,OPERATIONAL COSTS - Annual Cyclical Works-Building,
7,DCMS,EH,25/10/2011,Sykes and Son Limited,0020026196,"4,058.40",National Collections Group - Property Maintenance Programme,OPERATIONAL COSTS - Annual Cyclical Works-Building,
8,DCMS,EH,25/10/2011,Sykes and Son Limited,0020026196,988.80,National Collections Group - Property Maintenance Programme,OPERATIONAL COSTS - Annual Cyclical Works-Building,
9,DCMS,EH,25/10/2011,Sykes and Son Limited,0020026196,"5,998.80",National Collections Group - Property Maintenance Programme,OPERATIONAL COSTS - Annual Cyclical Works-Building,
10,DCMS,EH,25/10/2011,Sykes and Son Limited,0020026196,"1,294.80",National Collections Group - Property Maintenance Programme,OPERATIONAL COSTS - Annual Cyclical Works-Building,
11,DCMS,EH,25/10/2011,Sykes and Son Limited,0020026196,"3,430.80",National Collections Group - Property Maintenance Programme,OPERATIONAL COSTS - Annual Cyclical Works-Building,
12,DCMS,EH,25/10/2011,Sykes and Son Limited,0020026196,"2,650.80",National Collections Group - Property Maintenance Programme,OPERATIONAL COSTS - Annual Cyclical Works-Building,
13,DCMS,EH,25/10/2011,Sykes and Son Limited,0020026196,"3,175.20",National Collections Group - Property Maintenance Programme,OPERATIONAL COSTS - Annual Cyclical Works-Building,
14,DCMS,EH,25/10/2011,Sykes and Son Limited,0020026196,"5,996.40",National Collections Group - Property Maintenance Programme,OPERATIONAL COSTS - Annual Cyclical Works-Building,
15,DCMS,EH,25/10/2011,Sykes and Son Limited,0020026196,"4,383.60",National Collections Group - Property Maintenance Programme,OPERATIONAL COSTS - Annual Cyclical Works-Building,
16,DCMS,EH,05/10/2011,Past Pleasures Ltd,0020021390,"46,678.80",National Collections Group - Historic Properties Department,SALES & PROMOTIONS - Exhibits/Displays,
17,DCMS,EH,05/10/2011,Past Pleasures Ltd,0020021390,"5,637.60",National Collections Group - Historic Properties Department,SALES & PROMOTIONS - Exhibits/Displays,
18,DCMS,EH,17/10/2011,Gillards Worldwide,0020025355,"56,248.16",National Collections Group - Historic Properties Department,OPERATIONAL COSTS - Storage & warehousing,
19,DCMS,EH,12/10/2011,Historic Property Restoration Ltd,0020023905,"7,089.60",National Collections Group - Property Maintenance Programme,OPERATIONAL COSTS - Annual Cyclical Works-Building,
20,DCMS,EH,12/10/2011,Historic Property Restoration Ltd,0020023905,"2,344.18",National Collections Group - Property Maintenance Programme,OPERATIONAL COSTS - Leased Accomodation Maint,
21,DCMS,EH,12/10/2011,Historic Property Restoration Ltd,0020023905,"1,348.81",National Collections Group - Property Maintenance Programme,OPERATIONAL COSTS - Leased Accomodation Maint,
22,DCMS,EH,12/10/2011,Historic Property Restoration Ltd,0020023905,988.25,National Collections Group - Property Maintenance Programme,OPERATIONAL COSTS - Annual Cyclical Work M & E,
23,DCMS,EH,12/10/2011,Historic Property Restoration Ltd,0020023905,"14,298.95",National Collections Group - Property Maintenance Programme,OPERATIONAL COSTS - Annual Cyclical Work M & E,
24,DCMS,EH,12/10/2011,Historic Property Restoration Ltd,0020023905,"4,431.80",National Collections Group - Property Maintenance Programme,OPERATIONAL COSTS - Annual Cyclical Works-Building,
25,DCMS,EH,03/10/2011,Enterprise Rent A Car UK Ltd,0020023867,"26,967.38",Resources Group - Corporate,RUNNING COSTS - Car Hire,
26,DCMS,EH,31/10/2011,Tilhill Forestry Ltd,0020026392,"149,994.05",National Collections Group - Property Investment Programme,OPERATIONAL COSTS - Works for Heritage Buildings,
27,DCMS,EH,17/10/2011,Sanderson RBS Ltd,0020024636,"65,772.00",National Collections Group - Property Investment Programme,OTHER EXPENDITURE - System developments <50k,
28,DCMS,EH,17/10/2011,Sanderson RBS Ltd,0020024639,"56,400.00",National Collections Group - Property Investment Programme,OTHER EXPENDITURE - System developments <50k,
29,DCMS,EH,17/10/2011,Sanderson RBS Ltd,0020024641,"7,938.00",Resources Group - IMT Dept,OTHER EXPENDITURE - System developments <50k,
30,DCMS,EH,17/10/2011,Sanderson RBS Ltd,0020024641,"43,896.00",Resources Group - IMT Dept,OTHER EXPENDITURE - System developments <50k,
31,DCMS,EH,17/10/2011,Sanderson RBS Ltd,0020024641,"2,670.00",Resources Group - IMT Dept,OTHER EXPENDITURE - System developments <50k,
32,DCMS,EH,17/10/2011,Sanderson RBS Ltd,0020024641,"7,182.00",Resources Group - IMT Dept,OTHER EXPENDITURE - System developments <50k,
33,DCMS,EH,31/10/2011,Academia Ltd,0020026841,"40,574.54",Resources Group - IMT Dept,RUNNING COSTS - Software Maintenance,
34,DCMS,EH,24/10/2011,Seven,0020024057,"120,000.00",National Collections Group - Marketing Department,SALES & PROMOTIONS - Promotional Material,
35,DCMS,EH,18/10/2011,Thomas Sinden Ltd,0020024203,"46,616.76",National Collections Group - Property Investment Programme,OPERATIONAL COSTS - Works for Heritage Buildings,
36,DCMS,EH,18/10/2011,Coulson Group Ltd,0020021833,"24,750.32",National Collections Group - Property Investment Programme,NET WIP MOVEMENT - WIP Operational Building Works,
37,DCMS,EH,18/10/2011,Coulson Group Ltd,0020021833,"216,000.00",National Collections Group - Property Investment Programme,NET WIP MOVEMENT - WIP Operational Building Works,
38,DCMS,EH,25/10/2011,Department for Work and Pensions,0020025439,"27,406.45",Resources Group - Human Resources Department,RUNNING COSTS - Pensions Administration,
39,DCMS,EH,10/10/2011,Cultural Innovations Ltd,0020023070,"42,821.93",National Collections Group - Property Investment Programme,NET WIP MOVEMENT - WIP Operational Building Works,
40,DCMS,EH,31/10/2011,Capita Secure Information Systems Ltd,0020026717,"329,554.80",Resources Group - IMT Dept,RUNNING COSTS - ITFM,
41,DCMS,EH,04/10/2011,Heartfelt Roofing Ltd,0020023115,"39,597.60",National Collections Group - Property Maintenance Programme,OPERATIONAL COSTS - Planned Maintenance,
42,DCMS,EH,06/10/2011,Heartfelt Roofing Ltd,0020023115,"-3,729.60",Resources Group - Corporate,TOTAL CREDITORS - Subcontractors Tax,
43,DCMS,EH,17/10/2011,Wharton Construction Ltd,0020021907,"70,711.92",Heritage Protection & Planning Group - National Planning Department,OPERATIONAL COSTS - Fees for Professional Advice,
44,DCMS,EH,10/10/2011,Mayflower Technology Ltd,0090512125,"41,208.00",Heritage Protection & Planning Group - National Planning Department,GRANTS PAYABLE - HISTORIC BUILDINGS,
45,DCMS,EH,28/10/2011,Richmondshire District Council,0090512202,"29,699.00",Heritage Protection & Planning Group - National Planning Department,GRANTS PAYABLE - AREA,
46,DCMS,EH,17/10/2011,Holy Trinity Littleborough,0090512129,"77,400.00",Heritage Protection & Planning Group - National Planning Department,GRANTS PAYABLE - PLACES OF WORSHIP,
47,DCMS,EH,26/10/2011,PCC of Slapton,0090512179,"52,578.00",Heritage Protection & Planning Group - National Planning Department,GRANTS PAYABLE - PLACES OF WORSHIP,
48,DCMS,EH,05/10/2011,Acton Burnell PCC,0090512100,"9,200.00",Heritage Protection & Planning Group - National Planning Department,GRANTS PAYABLE - PLACES OF WORSHIP
49,DCMS,EH,05/10/2011,Acton Burnell PCC,0090512100,"34,000.00",Heritage Protection & Planning Group - National Planning Department,GRANTS PAYABLE - PLACES OF WORSHIP
50,DCMS,EH,28/10/2011,Hopton Castle Preservation Trust,0090512200,"33,000.00",Heritage Protection & Planning Group - National Planning Department,GRANTS PAYABLE - HISTORIC BUILDINGS
51,DCMS,EH,28/10/2011,Hopton Castle Preservation Trust,0090512201,750.00,Heritage Protection & Planning Group - National Planning Department,GRANTS PAYABLE - HISTORIC BUILDINGS
52,DCMS,EH,28/10/2011,Hopton Castle Preservation Trust,0090512201,"33,000.00",Heritage Protection & Planning Group - National Planning Department,GRANTS PAYABLE - HISTORIC BUILDINGS
53,DCMS,EH,17/10/2011,Memorial Community Church Plaistow,0090512145,"61,200.00",Heritage Protection & Planning Group - National Planning Department,GRANTS PAYABLE - PLACES OF WORSHIP
54,DCMS,EH,17/10/2011,St Johns Methodist Church Hindley,0090512131,"8,600.00",Heritage Protection & Planning Group - National Planning Department,GRANTS PAYABLE - PLACES OF WORSHIP
55,DCMS,EH,17/10/2011,St Johns Methodist Church Hindley,0090512131,"67,000.00",Heritage Protection & Planning Group - National Planning Department,GRANTS PAYABLE - PLACES OF WORSHIP
56,DCMS,EH,05/10/2011,PCC of St Margaret,0090512093,"69,000.00",Heritage Protection & Planning Group - National Planning Department,GRANTS PAYABLE - PLACES OF WORSHIP
57,DCMS,EH,24/10/2011,PCC of St Lukes,0090512162,"37,350.00",Heritage Protection & Planning Group - National Planning Department,GRANTS PAYABLE - PLACES OF WORSHIP
58,DCMS,EH,31/10/2011,Local Management Comm PCM Reading,0090512209,"117,000.00",Heritage Protection & Planning Group - National Planning Department,GRANTS PAYABLE - PLACES OF WORSHIP
59,DCMS,EH,19/10/2011,Hardham Priory,0090512152,"45,000.00",Heritage Protection & Planning Group - National Planning Department,GRANTS PAYABLE - HISTORIC BUILDINGS
60,DCMS,EH,26/10/2011,London Borough of Hounslow,0090512184,"25,000.00",Heritage Protection & Planning Group - National Planning Department,GRANTS PAYABLE - HISTORIC BUILDINGS
61,DCMS,EH,17/10/2011,The Vivat Trust Ltd,0090512147,"160,000.00",Heritage Protection & Planning Group - National Planning Department,GRANTS PAYABLE - HISTORIC BUILDINGS
62,DCMS,EH,12/10/2011,Saltaire URC,0090512126,"62,500.00",Heritage Protection & Planning Group - National Planning Department,GRANTS PAYABLE - PLACES OF WORSHIP
63,DCMS,EH,19/10/2011,Betchworth Castle,0090512151,"83,700.00",Heritage Protection & Planning Group - National Planning Department,GRANTS PAYABLE - HISTORIC BUILDINGS
64,DCMS,EH,05/10/2011,Hagley Hall,0090512104,"59,250.00",Heritage Protection & Planning Group - National Planning Department,GRANTS PAYABLE - HISTORIC BUILDINGS
65,DCMS,EH,26/10/2011,Firle Place,0090512193,"72,000.00",Heritage Protection & Planning Group - National Planning Department,GRANTS PAYABLE - HISTORIC BUILDINGS
66,DCMS,EH,26/10/2011,Broseley with Benthall PCC,0090512187,"42,750.00",Heritage Protection & Planning Group - National Planning Department,GRANTS PAYABLE - PLACES OF WORSHIP
67,DCMS,EH,24/10/2011,"PCC of All Saints, Nocton, Lincolnshire",0090512171,"16,500.00",Heritage Protection & Planning Group - National Planning Department,GRANTS PAYABLE - PLACES OF WORSHIP
68,DCMS,EH,24/10/2011,"PCC of All Saints, Nocton, Lincolnshire",0090512171,"12,739.00",Heritage Protection & Planning Group - National Planning Department,GRANTS PAYABLE - PLACES OF WORSHIP
69,DCMS,EH,05/10/2011,PCC of St John the Evangelist,0090512102,"94,962.00",Heritage Protection & Planning Group - National Planning Department,GRANTS PAYABLE - PLACES OF WORSHIP
70,DCMS,EH,24/10/2011,Holy Trinity Church,0090512173,"43,500.00",Heritage Protection & Planning Group - National Planning Department,GRANTS PAYABLE - PLACES OF WORSHIP
71,DCMS,EH,28/10/2011,Clearwell PCC,0090512203,"53,000.00",Heritage Protection & Planning Group - National Planning Department,GRANTS PAYABLE - PLACES OF WORSHIP
72,DCMS,EH,28/10/2011,Clearwell PCC,0090512203,"48,700.00",Heritage Protection & Planning Group - National Planning Department,GRANTS PAYABLE - PLACES OF WORSHIP
73,DCMS,EH,10/10/2011,PCC of St Martin with St Francis,0090512115,"26,511.00",Heritage Protection & Planning Group - National Planning Department,GRANTS PAYABLE - PLACES OF WORSHIP
74,DCMS,EH,17/10/2011,St John's Church Council,0090512130,"29,000.00",Heritage Protection & Planning Group - National Planning Department,GRANTS PAYABLE - PLACES OF WORSHIP
75,DCMS,EH,10/10/2011,St James Bix PCC,0090512112,"66,150.00",Heritage Protection & Planning Group - National Planning Department,GRANTS PAYABLE - PLACES OF WORSHIP
76,DCMS,EH,26/10/2011,Bristol City Council,0090512182,"132,890.00",Heritage Protection & Planning Group - National Planning Department,GRANTS PAYABLE - HISTORIC BUILDINGS
77,DCMS,EH,24/10/2011,Skendleby PCC,0090512174,"74,500.00",Heritage Protection & Planning Group - National Planning Department,GRANTS PAYABLE - PLACES OF WORSHIP
78,DCMS,EH,10/10/2011,Hope Baptist Church--John Fawcett Centre,0090512124,"54,000.00",Heritage Protection & Planning Group - National Planning Department,GRANTS PAYABLE - PLACES OF WORSHIP
79,DCMS,EH,19/10/2011,Maidstone Borough Council,0090512153,"29,294.00",Heritage Protection & Planning Group - National Planning Department,GRANTS PAYABLE - HISTORIC BUILDINGS
80,DCMS,EH,24/10/2011,All Saints PCC,0090512164,"80,500.00",Heritage Protection & Planning Group - National Planning Department,GRANTS PAYABLE - PLACES OF WORSHIP,
81,DCMS,EH,26/10/2011,PCC Church of the Ascension,0090512177,"54,500.00",Heritage Protection & Planning Group - National Planning Department,GRANTS PAYABLE - PLACES OF WORSHIP,
82,DCMS,EH,03/10/2011,PCC of St James in the City,0090512089,"52,966.00",Heritage Protection & Planning Group - National Planning Department,GRANTS PAYABLE - HISTORIC BUILDINGS,
83,DCMS,EH,14/10/2011,Lyme Bay Cider Company Ltd,0001075366,"28,881.90",National Collections Group - Historic Properties Department,TOTAL STOCK - Retail Goods & Souvenirs Purch,
